bitfinex/quotes_ETHUSD_20240715
["timestamp","ask_amount","ask_price","bid_price","bid_amount"]
[1721047855733,1.12175675,3349.3,3349.2,2.98578]
[1721047855928,1.24944372,3349.4,3349.2,2.98578]
[1721047856133,1.94296207,3349.3,3349.2,2.98578]
[1721047856423,0.69351835,3349.3,3349.2,2.98578]
[1721047857628,1.24944372,3349.4,3349.2,2.98578]
[1721047857937,1.12233674,3349.3,3349.2,2.98578]
[1721047858422,2.98482,3350.3,3349.3,2.98569]
[1721047858641,1.25013055,3349.5,3349.3,2.98569]
[1721047858925,0.69368288,3349.4,3349.3,2.98569]
[1721047859398,1.75899204,3349.4,3349.3,2.98569]
[1721047859887,1.12254337,3349.4,3349.3,5.97138]
[1721047860634,1.25013055,3349.5,3349.4,2.9856]
[1721047860998,3.24605288,3349.5,3349.4,2.9856]
[1721047861198,0.69376541,3349.5,3349.4,5.9712]
[1721047861446,0.81011019,3349.5,3349.4,5.9712]
[1721047861748,0.18483496,3349.5,3349.4,5.9712]
[1721047862044,1.12263847,3349.6,3349.5,2.98552]
[1721047862796,0.18483496,3349.6,3349.5,2.98552]
[1721047863013,0.18483496,3349.6,3349.5,5.97104]
[1721047863249,1.25013055,3349.8,3349.3,2.98568]
[1721047863250,0.62519232,3349.8,3349.3,2.98568]
[1721047863446,0.62512349,3349.8,3349.7,2.98534]
[1721047863741,0.18470715,3349.8,3349.7,2.98534]
[1721047864103,1.25013055,3350.0,3349.9,2.98516]
[1721047864104,0.937665,3350.0,3349.9,2.98516]
[1721047864419,1.80854816,3350.0,3349.7,2.98527]
[1721047864616,1.94370216,3349.9,3349.7,2.98527]
[1721047864815,1.94365419,3349.8,3349.4,2.98553]
[1721047865019,0.93748748,3349.5,3349.4,5.97113]
[1721047865218,1.12219652,3349.5,3349.4,5.97113]
[1721047865438,0.93748748,3349.6,3349.5,5.97104]
[1721047865750,0.80971967,3349.6,3349.5,5.97104]
[1721047866038,0.18472077,3349.6,3349.5,5.97104]
[1721047867295,0.6249989,3349.6,3349.5,5.97104]
[1721047867520,0.80971967,3349.6,3349.5,5.97104]
[1721047867722,0.6249989,3349.7,3349.6,2.98543]
[1721047867935,0.80968337,3349.7,3349.6,2.98543]
[1721047868126,0.18468447,3349.7,3349.6,2.98543]
[1721047868336,0.86210408,3349.7,3349.6,2.98543]
[1721047868641,0.42192366,3349.7,3349.6,2.98543]
[1721047868847,0.62481872,3349.7,3349.6,5.97086]
[1721047869015,1.562775,3350.2,3349.8,5.9705]
[1721047869016,0.62481872,3349.9,3349.8,5.9705]
[1721047869340,0.93748748,3350.1,3350.0,5.97014]
[1721047869341,0.62481872,3350.1,3350.0,5.97014]
[1721047869641,0.93748748,3350.3,3350.0,2.98507]
[1721047869884,0.62468224,3350.1,3350.0,5.97014]
[1721047870092,0.62468224,3350.2,3350.1,5.96996]
[1721047870239,0.93748748,3350.3,3350.2,2.98489]
[1721047870439,9.6701,3350.7,3350.2,2.98489]
[1721047870640,0.93679221,3350.4,3350.2,2.98489]
[1721047870841,1.24905628,3350.5,3350.2,2.98489]
[1721047870842,1.12127819,3350.3,3350.2,2.98489]
[1721047871080,0.93679221,3350.3,3350.2,2.98489]
[1721047871443,0.18448598,3350.3,3350.2,2.98489]
[1721047871754,0.18448598,3350.3,3349.9,2.98513]
[1721047871948,0.80889322,3350.2,3349.9,2.98513]
[1721047872158,0.62440724,3350.2,3350.1,2.98494]
[1721047872366,0.80884179,3350.2,3349.9,2.98508]
[1721047872783,2.3567,3350.0,3349.9,2.98508]
[1721047872967,2.99518841,3350.0,3349.9,2.98508]
[1721047873171,3.93198062,3350.0,3349.9,2.98508]
[1721047873763,2.81075386,3350.0,3349.7,5.97059]
[1721047873988,0.80862277,3349.9,3349.7,5.97059]
[1721047874207,2.3567,3350.0,3349.7,2.98526]
[1721047874504,0.8086224,3349.9,3349.8,2.98525]
[1721047874701,0.80855613,3349.9,3349.8,2.98525]
[1721047874904,0.18445552,3349.9,3349.8,2.98525]
[1721047875357,0.80855613,3349.9,3349.8,2.98525]
[1721047876280,0.62410061,3350.0,3349.9,2.98516]
[1721047876665,0.80820657,3350.0,3349.9,2.98516]
[1721047876870,0.80822544,3350.0,3349.9,2.98516]
[1721047877195,0.80823891,3350.0,3349.9,2.98516]
[1721047878080,0.80823891,3350.0,3349.7,5.97054]
[1721047878264,0.80823891,3349.9,3349.7,2.98526]
[1721047878468,0.62386706,3349.9,3349.7,2.98526]
[1721047879491,0.62386706,3349.9,3349.5,2.98544]
[1721047879661,0.62386706,3349.9,3349.6,2.98537]
[1721047879868,0.62386706,3349.9,3348.6,10.26626]
[1721047880072,0.62386706,3349.9,3349.5,2.98546]
[1721047880284,1.02861583,3349.8,3349.3,2.98567]
[1721047880473,2.57998674,3349.7,3349.3,2.98567]
[1721047880673,0.18430474,3349.6,3349.3,2.98567]
[1721047880869,3.01956706,3349.7,3349.4,2.98558]
[1721047881105,0.62386706,3349.8,3348.8,3.0]
[1721047881412,0.62386706,3350.0,3349.9,2.98514]
[1721047881623,0.62386706,3350.2,3349.9,2.98515]
[1721047881785,0.62386706,3350.3,3349.9,2.98515]
[1721047882324,0.62386706,3350.3,3350.1,2.98493]
[1721047883209,2.98176706,3350.4,3350.1,2.98493]
[1721047883414,2.98176706,3350.4,3350.1,2.98491]
[1721047883415,0.18427037,3350.3,3350.1,2.98491]
[1721047883641,2.98176706,3350.4,3350.1,2.98491]
[1721047883779,0.1842656,3350.3,3350.1,2.98491]
[1721047883974,2.98176706,3350.4,3350.1,2.98491]
[1721047884176,0.18426335,3350.3,3350.1,2.98491]
[1721047884399,0.62386706,3350.4,3350.3,5.9696]
[1721047884610,7.4,3350.7,3350.6,2.98454]
[1721047884958,0.93625033,3350.9,3350.6,2.98454]
[1721047884959,0.62386706,3350.9,3350.6,2.98454]
[1721047885158,0.93625033,3351.0,3350.4,2.98471]
[1721047885159,2.4215,3350.7,3350.4,2.98464]
[1721047885327,2.4215,3350.7,3350.2,2.98485]
[1721047885505,0.80782029,3350.6,3350.0,2.98502]
[1721047885856,0.80782029,3350.6,3349.9,2.98513]
[1721047885857,0.6236457,3350.4,3350.1,2.98496]
[1721047886159,0.6236457,3350.5,3350.1,2.98496]
[1721047886308,0.6236457,3350.5,3350.2,2.98489]
[1721047886509,0.6236457,3350.6,3350.2,2.98489]
[1721047887113,0.1841785,3350.5,3349.9,2.98516]
[1721047887307,0.8078242,3350.5,3350.2,2.98483]
[1721047887508,1.16203744,3350.6,3350.2,5.96966]
[1721047887763,0.18417161,3350.5,3350.2,2.98483]
[1721047888047,0.80782028,3350.5,3350.2,2.98483]
[1721047888216,1.10956493,3350.5,3350.2,2.98483]
[1721047889015,0.48591923,3350.5,3350.3,2.98479]
[1721047889217,3.0451457,3350.7,3350.3,2.98479]
[1721047889610,0.15601174,3350.8,3350.5,2.98454]
[1721047889611,0.6236457,3350.8,3350.5,2.98454]
[1721047889968,0.6236457,3350.8,3350.4,2.98466]
[1721047890158,0.80775904,3350.7,3350.4,2.98466]
[1721047890309,0.80775904,3350.6,3350.4,2.98466]
[1721047890508,0.6236457,3350.6,3350.5,2.98462]
[1721047890756,0.6236457,3350.7,3350.5,2.98462]
[1721047890907,0.6236457,3350.7,3350.3,2.98477]
[1721047890908,0.8077911,3350.6,3350.3,2.98474]
[1721047891112,0.6236457,3350.6,3350.3,2.98474]
[1721047891315,0.6236457,3350.6,3350.4,2.9847]
[1721047891512,0.6236457,3350.7,3350.4,2.9847]
[1721047891823,0.80780033,3350.6,3350.4,2.9847]
[1721047892023,0.18417496,3350.5,3350.4,2.9847]
[1721047892444,0.95681132,3350.7,3350.4,2.9847]
[1721047892645,0.18416685,3350.6,3350.4,2.9847]
[1721047892945,0.95681132,3350.7,3350.4,2.9847]
[1721047893253,0.80781192,3350.6,3350.4,2.9847]
[1721047893439,0.18420816,3350.5,3350.4,2.9847]
[1721047893648,0.18420816,3350.5,3350.2,2.98482]
[1721047893841,0.88388469,3350.5,3350.0,2.98499]
[1721047894141,3.24418469,3350.5,3350.1,2.98495]
[1721047894335,0.18429665,3350.4,3350.1,2.98495]
[1721047894537,3.24418469,3350.5,3350.1,2.98495]
[1721047894742,3.24418469,3350.5,3349.6,5.623]
[1721047894743,0.18429615,3350.4,3349.9,2.98509]
[1721047895087,3.24418469,3350.5,3349.6,5.623]
[1721047895088,1.24443449,3350.3,3349.6,5.98541]
[1721047895379,0.6236978,3349.9,3349.6,2.98541]
[1721047895877,0.6236978,3349.9,3349.8,2.98525]
[1721047896080,0.6236978,3350.0,3349.9,2.98516]
[1721047896461,0.93554671,3350.1,3349.9,2.98516]
[1721047896662,0.93707005,3350.1,3349.9,2.98516]
[1721047896854,0.80928119,3350.0,3349.9,2.98516]
[1721047897058,0.80926057,3350.0,3349.9,2.98516]
[1721047897256,0.93707005,3350.0,3349.9,2.98516]
[1721047897484,0.69305008,3350.0,3349.9,2.98516]
[1721047897776,0.69305008,3350.0,3349.7,5.97053]
[1721047897985,0.62515039,3349.8,3349.7,5.9706]
[1721047898149,0.62515039,3350.0,3349.9,2.98516]
[1721047898344,0.62515039,3350.0,3349.3,2.98566]
[1721047898345,0.18466623,3350.0,3349.3,2.98566]
[1721047898543,0.93772559,3350.2,3350.1,2.98498]
[1721047898799,0.18468624,3350.2,3350.1,5.96996]
[1721047899495,0.93772559,3350.2,3350.1,5.96996]
[1721047899879,0.93829315,3350.3,3350.2,5.96978]
[1721047900212,0.81021515,3350.3,3350.2,5.96978]
[1721047900791,1.12301558,3350.3,3350.2,5.96978]
[1721047901283,0.81031315,3350.3,3350.2,5.96978]
[1721047901489,0.62559072,3350.4,3350.3,5.9696]
[1721047902386,0.93829315,3350.5,3350.4,5.96942]
[1721047902587,1.12301119,3350.5,3350.4,5.96942]
[1721047902787,0.93829315,3350.5,3350.4,5.96942]
[1721047903978,0.93829315,3350.5,3350.4,2.98471]
[1721047904172,1.2510773,3350.6,3350.5,2.98462]
[1721047904373,0.69389591,3350.6,3350.5,2.98462]
[1721047904620,1.99549942,3350.6,3350.5,2.98462]
[1721047904910,0.69389591,3350.6,3350.5,2.98462]
[1721047905288,1.2510773,3350.7,3350.5,2.98462]
[1721047905610,0.93878274,3350.6,3350.5,2.98462]
[1721047905821,0.18474793,3350.6,3350.5,5.96924]
[1721047905992,0.62581122,3350.6,3350.5,5.96924]
[1721047906580,1.2510773,3350.9,3350.5,5.96924]
[1721047906581,5.98348,3351.8,3350.8,2.98434]
[1721047906779,1.56434985,3351.0,3350.8,2.98434]
[1721047907091,2.9708578,3351.1,3350.8,2.98434]
[1721047907092,3.55973765,3350.9,3350.8,2.98434]
[1721047907302,1.9953878,3350.9,3350.8,2.98434]
[1721047908113,3.24673762,3350.9,3350.8,2.98434]
[1721047908420,1.9953878,3350.9,3350.8,2.98434]
[1721047908788,3.24669827,3350.9,3350.8,2.98434]
[1721047909329,1.76044035,3350.9,3350.8,2.98434]
[1721047909482,3.24644576,3350.9,3350.8,2.98434]
[1721047909894,1.99529926,3350.9,3350.8,5.9687]
[1721047910112,1.12299435,3350.9,3350.8,5.9687]
[1721047911423,0.81003635,3350.9,3350.8,5.9687]
[1721047911621,0.18465806,3350.9,3350.8,5.9687]
[1721047911919,0.93833629,3351.1,3350.6,5.60746]
[1721047911920,0.62537829,3351.1,3351.0,5.96836]
[1721047912415,0.80990561,3351.1,3351.0,5.96836]
[1721047912722,0.62521236,3351.2,3351.1,5.96818]
[1721047913022,0.80968847,3351.2,3351.1,5.96818]
[1721047913381,0.62521236,3351.3,3351.2,5.968]
[1721047913715,0.62521236,3351.4,3351.3,5.96782]
[1721047913923,0.80961928,3351.4,3351.3,5.96782]
[1721047914927,0.80961928,3351.4,3351.3,2.98391]
[1721047915331,0.18440692,3351.4,3351.3,2.98391]
[1721047915630,0.80961928,3351.4,3351.3,5.96782]
[1721047915831,0.62521236,3351.4,3351.3,2.98391]
[1721047916137,0.62521236,3351.4,3351.2,2.98398]
[1721047916138,0.93711987,3351.6,3351.4,2.98382]
[1721047916353,0.60532795,3351.6,3351.4,2.98382]
[1721047916628,0.62460154,3351.5,3351.4,2.98382]
[1721047916831,0.80887424,3351.5,3351.4,2.98382]
[1721047917143,0.62460154,3351.5,3351.4,2.98382]
[1721047917308,0.80887424,3351.5,3351.4,2.98382]
[1721047918135,0.1842727,3351.5,3351.4,2.98382]
[1721047918343,0.62460154,3351.6,3351.5,2.98373]
[1721047918715,0.80878221,3351.6,3351.5,2.98373]
[1721047918910,0.18418067,3351.6,3351.5,2.98373]
[1721047919126,0.62460154,3351.7,3351.6,2.98364]
[1721047919127,0.62431063,3351.7,3351.6,2.98364]
[1721047919308,0.80846672,3351.7,3351.6,2.98364]
[1721047920535,0.18415609,3351.7,3351.6,2.98364]
[1721047921511,2.92911063,3351.8,3351.7,2.98356]
[1721047921695,2.48893612,3351.8,3351.7,2.98356]
[1721047921945,2.48893612,3351.8,3351.5,5.96739]
[1721047922114,0.80830117,3351.7,3351.6,2.98358]
[1721047922316,0.80830117,3351.7,3351.4,2.98377]
[1721047922569,0.18413612,3351.6,3351.4,2.98377]
[1721047922841,0.62416505,3351.6,3351.2,2.984]
[1721047923013,1.26746134,3351.5,3351.2,2.984]
[1721047923333,0.45915684,3351.5,3351.2,2.984]
[1721047923744,0.45915684,3351.5,3351.0,2.9841]
[1721047924034,0.45915684,3351.5,3350.8,2.98433]
[1721047924035,0.62416505,3351.2,3350.8,2.98433]
[1721047924244,0.62416505,3351.0,3350.9,2.98425]
[1721047924536,1.01748834,3351.1,3350.9,2.98425]
[1721047924845,0.62416505,3351.1,3350.9,2.98425]
[1721047925539,0.62416505,3351.0,3350.9,2.98425]
[1721047925743,0.62416505,3351.1,3350.9,2.98425]
[1721047926312,0.62416505,3351.1,3350.8,2.98433]
[1721047926535,0.80842119,3351.0,3350.8,2.98433]
[1721047926900,0.80842119,3351.0,3350.6,2.98451]
[1721047927246,2.3063,3350.9,3350.6,2.98451]
[1721047927446,2.3063,3350.9,3350.8,2.98436]
[1721047927617,0.62416505,3351.0,3350.8,2.98436]
[1721047927805,0.8085193,3351.0,3350.8,2.98436]
[1721047928007,0.62416505,3351.0,3350.9,2.98427]
[1721047928231,0.80892845,3351.0,3350.9,2.98427]
[1721047928409,0.62457345,3351.0,3350.9,2.98427]
[1721047928600,0.62462148,3351.0,3350.9,2.98427]
[1721047928824,0.18436741,3351.0,3350.9,2.98427]
[1721047929025,1.12129963,3351.0,3350.9,2.98427]
[1721047929234,0.80902387,3351.0,3350.9,2.98427]
[1721047929506,0.62465646,3351.1,3350.9,2.98427]
[1721047930339,0.62465646,3351.1,3351.0,2.98418]
[1721047930716,0.18435481,3351.1,3351.0,2.98418]
[1721047930918,0.93693222,3351.2,3351.0,2.98418]
[1721047931226,2.2898,3351.0,3350.8,2.98436]
[1721047931417,0.8091095,3350.9,3350.8,2.98436]
[1721047931618,2.2898,3351.0,3350.8,2.98436]
[1721047931619,2.91451196,3351.0,3350.8,2.98436]
[1721047932040,2.91451196,3351.0,3350.9,2.98427]
[1721047932239,3.09887643,3351.0,3350.9,2.98427]
[1721047933647,2.47416447,3351.0,3350.9,2.98427]
[1721047934010,2.47416447,3351.0,3350.9,5.96854]
[1721047934557,2.47419745,3351.0,3350.9,5.96854]
[1721047935323,0.62471196,3351.1,3351.0,5.96836]
[1721047936053,0.62471196,3351.2,3351.1,5.96818]
[1721047936253,0.62471196,3351.3,3351.2,5.968]
[1721047936467,0.80905525,3351.3,3351.2,5.968]
[1721047936818,0.62471196,3351.3,3351.2,5.968]
[1721047937223,1.12137369,3351.4,3351.3,2.98391]
[1721047937423,1.12140294,3351.4,3351.3,2.98391]
[1721047937961,1.12139471,3351.4,3351.3,2.98391]
[1721047939873,0.18436431,3351.4,3351.3,5.96782]
[1721047940213,0.62487217,3351.7,3351.5,5.96746]
[1721047940351,0.1843056,3351.6,3351.5,2.98373]
[1721047940694,0.6248404,3351.6,3351.5,5.96746]
[1721047940852,0.809146,3351.6,3351.5,5.96746]
[1721047941056,2.278,3351.8,3351.7,2.98356]
[1721047941286,2.46223808,3351.8,3351.7,2.98356]
[1721047941601,3.39949277,3351.8,3351.7,2.98356]
[1721047941890,2.46228459,3351.8,3351.7,2.98356]
[1721047942887,0.80924779,3351.8,3351.7,5.96712]
[1721047943056,0.18428459,3351.8,3351.7,5.96712]
[1721047943257,0.93729742,3351.9,3351.8,2.98347]
[1721047943456,1.12163511,3351.9,3351.8,2.98347]
[1721047944154,1.12163436,3351.9,3351.8,2.98347]
[1721047944384,0.69287029,3351.9,3351.8,2.98347]
[1721047945680,1.25045298,3352.0,3351.8,2.98347]
[1721047945883,0.69289226,3351.9,3351.8,2.98347]
[1721047946191,1.25045298,3352.0,3351.8,2.98347]
[1721047946399,0.69289226,3351.9,3351.8,2.98347]
[1721047946554,1.25045298,3352.0,3351.9,2.98338]
[1721047946750,3.2445699,3352.0,3351.7,2.98356]
[1721047946967,0.93786835,3351.8,3351.7,2.98356]
[1721047947265,1.12226376,3351.8,3351.7,2.98356]
[1721047947465,1.12227786,3351.8,3351.7,2.98356]
[1721047947696,0.93786835,3351.8,3351.7,2.98356]
[1721047947895,1.12227763,3351.8,3351.7,2.98356]
[1721047951075,1.12227763,3351.8,3351.6,2.98363]
[1721047951076,1.12250859,3351.8,3351.5,2.98373]
[1721047951307,1.12250859,3351.8,3351.6,2.98363]
[1721047951308,1.9439597,3351.8,3351.6,2.98363]
[1721047951504,3.24523717,3351.7,3351.6,2.98363]
[1721047952006,3.24523717,3351.7,3351.4,2.98376]
[1721047952204,1.12269341,3351.6,3351.5,2.98373]
[1721047952710,0.93820105,3351.6,3351.5,2.98373]
[1721047953422,0.69336042,3351.6,3351.4,2.98374]
[1721047953620,0.93835585,3351.5,3351.4,2.98374]
[1721047953921,1.12284821,3351.5,3351.4,2.98374]
[1721047954085,0.93835585,3351.5,3351.4,2.98374]
[1721047954290,3.61926377,3351.7,3351.5,2.98373]
[1721047954492,0.69346906,3351.6,3351.5,2.98373]
[1721047955805,0.69346906,3351.6,3351.3,5.96774]
[1721047956009,0.62568445,3351.4,3351.3,5.96774]
[1721047956402,0.93852667,3351.4,3351.1,2.98404]
[1721047956652,0.93863832,3351.3,3351.2,2.984]
[1721047957020,1.12318785,3351.3,3351.2,2.984]
[1721047957340,0.93863832,3351.3,3351.2,2.984]
[1721047957700,1.25076377,3351.4,3351.2,2.984]
[1721047957921,0.9386988,3351.3,3351.2,2.984]
[1721047958136,1.12331188,3351.3,3351.2,2.984]
[1721047958502,1.25076377,3351.4,3351.2,2.984]
[1721047958705,1.301357,3351.3,3351.2,2.984]
[1721047958965,3.24581745,3351.3,3351.2,2.984]
[1721047960902,3.24661258,3351.3,3351.2,2.984]
[1721047961100,3.24661258,3351.3,3351.0,5.96828]
[1721047961355,1.1232629,3351.2,3351.0,2.98411]
[1721047961644,0.18456172,3351.1,3351.0,5.96829]
[1721047962244,0.93870118,3351.2,3351.1,2.98409]
[1721047963629,1.12327099,3351.2,3351.1,2.98409]
[1721047963806,0.93870118,3351.2,3351.1,2.98409]
[1721047965215,1.25160929,3351.4,3351.1,2.98409]
[1721047965421,1.12323725,3351.3,3351.2,2.984]
[1721047965942,1.99491431,3351.3,3351.1,2.98409]
[1721047966129,1.12324046,3351.2,3351.1,5.96818]
[1721047966500,0.18455128,3351.2,3351.1,5.96818]
[1721047966814,0.62576804,3351.3,3351.2,5.968]
[1721047967015,0.81026475,3351.3,3351.2,5.968]
[1721047967546,0.81025394,3351.3,3351.2,5.968]
[1721047968439,0.1844859,3351.3,3351.2,5.968]
[1721047968620,0.1844859,3351.3,3351.0,2.98414]
[1721047968621,0.62576804,3351.6,3351.5,5.96746]
[1721047968950,0.81018408,3351.6,3351.5,5.96746]
[1721047969114,0.18441604,3351.6,3351.5,5.96746]
[1721047969330,0.81018408,3351.6,3351.5,5.96746]
[1721047969538,1.12310522,3351.6,3351.3,2.98385]
[1721047969723,0.93868918,3351.5,3351.3,2.98385]
[1721047969911,0.18441604,3351.4,3351.3,2.98385]
[1721047970350,1.12310522,3351.4,3351.3,2.98385]
[1721047970555,1.25160929,3351.5,3351.4,2.98382]
[1721047970708,3.24638502,3351.5,3351.4,2.98382]
[1721047972330,3.2465018,3351.5,3351.4,2.98382]
[1721047973449,3.2465018,3351.5,3351.3,2.9839]
[1721047973625,1.99477573,3351.4,3351.3,2.9839]
[1721047973952,0.50897241,3351.4,3351.3,2.9839]
[1721047974144,1.30130032,3351.4,3351.3,2.9839]
[1721047974451,1.99485965,3351.4,3351.3,2.9839]
[1721047975038,1.99485965,3351.4,3351.0,2.98415]
[1721047975236,0.62605308,3351.1,3351.0,2.98415]
[1721047975435,0.81064002,3351.1,3351.0,5.98415]
[1721047975652,0.62605308,3351.1,3351.0,8.96833]
[1721047975852,0.18458694,3351.1,3351.0,8.96833]
[1721047976146,0.93897983,3351.3,3351.2,2.984]
[1721047976339,1.12359799,3351.3,3351.2,2.984]
[1721047976855,0.93897983,3351.3,3351.2,2.984]
[1721047977315,1.94580941,3351.4,3351.2,2.984]
[1721047977518,0.69387017,3351.3,3351.2,2.984]
[1721047977718,1.25193924,3351.4,3351.2,2.984]
[1721047977957,1.43655771,3351.4,3351.2,2.984]
[1721047978168,1.25193924,3351.4,3351.3,2.98391]
[1721047978328,2.73790389,3351.4,3351.3,4.07491]
[1721047978666,3.24726223,3351.4,3351.3,4.07491]
[1721047979241,3.24726223,3351.4,3351.3,2.98391]
[1721047980519,3.24805793,3351.4,3351.3,2.98391]
[1721047980744,3.24805793,3351.4,3351.0,3.0]
[1721047980745,1.99535697,3351.4,3351.0,5.98413]
[1721047981059,1.56587621,3351.5,3351.1,1.091]
[1721047981060,0.93954634,3351.2,3351.1,1.091]
[1721047981256,3.24808543,3351.2,3351.1,1.091]
[1721047982438,5.60868543,3351.2,3351.1,1.091]
[1721047982765,5.60868543,3351.2,3351.0,2.98413]
[1721047982766,5.07341313,3351.2,3351.0,2.98413]
[1721047983055,3.24850322,3351.1,3351.0,2.98413]
[1721047984321,3.24850322,3351.1,3350.5,2.9846]
[1721047984534,1.56630626,3350.9,3350.7,2.98439]
[1721047984720,3.56185936,3350.8,3350.7,4.07539]
[1721047986053,0.50935834,3350.8,3350.5,4.0756]
[1721047986238,5.20562855,3350.7,3350.5,4.07556]
[1721047986569,1.99575967,3350.6,3350.5,4.07556]
[1721047987692,4.28922533,3350.6,3350.1,4.091]
[1721047987892,0.93888088,3350.3,3350.2,2.98486]
[1721047988180,1.56542722,3350.6,3350.2,2.98486]
[1721047988181,0.62597872,3350.4,3350.3,2.9848]
[1721047988385,0.62597872,3350.4,3350.3,4.0758]
[1721047988386,0.18467442,3350.4,3350.3,4.0758]
[1721047988591,0.62597872,3350.5,3350.4,2.98471]
[1721047989471,0.93850781,3350.6,3350.5,2.98462]
[1721047989674,1.12313365,3350.6,3350.5,4.07562]
[1721047990073,0.93850781,3350.7,3350.6,2.98454]
[1721047990252,0.93850781,3350.7,3350.6,4.07554]
[1721047992874,1.12313265,3350.7,3350.6,4.07554]
[1721047994380,0.93850781,3350.7,3350.6,4.07554]
[1721047994765,1.12313265,3350.7,3350.6,4.07554]
[1721047994962,0.93850781,3350.7,3350.6,4.07554]
[1721047995379,1.12313265,3350.7,3350.6,4.07554]
[1721047996202,1.25128318,3350.9,3350.7,2.98441]
[1721047996399,0.50898498,3350.8,3350.7,2.98441]
[1721047996700,1.25128318,3350.9,3350.7,2.98441]
[1721047996701,1.94487975,3350.9,3350.7,2.98441]
[1721047996916,1.30156717,3350.8,3350.7,2.98441]
[1721047997066,0.69359657,3350.8,3350.7,2.98441]
[1721047997267,1.301571,3350.8,3350.7,2.98441]
[1721047997468,0.69359657,3350.8,3350.7,2.98441]
[1721047997701,1.94487975,3350.9,3350.7,2.98441]
[1721047999171,1.76026816,3350.9,3350.7,2.98441]
[1721047999370,2.3858,3350.7,3350.3,2.98474]
[1721047999602,0.93830004,3350.5,3350.3,2.98473]
[1721047999772,0.18459187,3350.4,3350.3,2.98473]
[1721047999979,1.12289191,3350.4,3350.3,2.98473]
[1721048000398,0.93830004,3350.5,3350.4,2.98471]
[1721048000595,0.69351402,3350.5,3350.2,2.98489]
[1721048000802,0.62545523,3350.3,3350.2,2.98489]
[1721048001006,0.62545523,3350.3,3350.1,4.091]
[1721048001007,3.59783081,3350.3,3349.4,2.98555]
[1721048001324,0.62521774,3349.9,3349.8,2.98519]
[1721048001473,0.18462727,3349.9,3349.8,2.98519]
[1721048001680,1.12245388,3349.9,3349.8,2.98519]
[1721048002117,0.18462727,3349.9,3349.8,2.98519]
[1721048002280,0.80957225,3349.9,3349.8,4.07619]
[1721048002500,0.62494498,3350.0,3349.9,2.98516]
[1721048002790,0.93782661,3350.0,3349.9,2.98516]
[1721048002995,0.18454314,3350.0,3349.9,2.98516]
[1721048003183,0.62477018,3350.0,3349.9,2.98516]
[1721048003388,0.80931332,3350.0,3349.9,2.98516]
[1721048003576,0.80931332,3350.0,3349.9,5.97032]
[1721048003779,3.65146672,3350.3,3350.2,2.98489]
[1721048003780,3.02517018,3350.3,3350.2,2.98489]
[1721048004003,2.58485389,3350.3,3350.2,2.98489]
[1721048004893,2.58485389,3350.3,3350.1,2.98498]
[1721048005221,1.59965522,3350.2,3350.0,2.985]
[1721048005447,1.12122262,3350.1,3350.0,2.985]
[1721048005726,1.12121852,3350.1,3350.0,2.985]
[1721048005886,1.12120378,3350.1,3350.0,2.985]
[1721048006191,0.18442361,3350.1,3350.0,2.985]
[1721048006397,1.1211929,3350.1,3350.0,2.985]
[1721048006590,0.8088157,3350.1,3350.0,2.985]
[1721048006923,0.18442361,3350.1,3350.0,2.985]
[1721048007080,0.18442361,3350.1,3349.8,2.98522]
[1721048007280,0.8087379,3350.1,3349.9,2.98512]
[1721048007511,0.18434581,3350.0,3349.9,2.98512]
[1721048007716,0.62439209,3350.1,3350.0,2.98507]
[1721048007889,0.80872436,3350.1,3350.0,2.98507]
[1721048008807,0.62439209,3350.1,3350.0,5.97014]
[1721048008986,2.4004,3350.3,3350.2,2.98489]
[1721048009185,3.20881737,3350.3,3350.2,2.98489]
[1721048009415,2.58468933,3350.3,3350.2,2.98489]
[1721048009806,3.20879352,3350.3,3350.2,2.98489]
[1721048010919,3.20856582,3350.3,3350.2,2.98489]
[1721048011106,3.20859153,3350.3,3350.2,2.98489]
[1721048011717,0.18428933,3350.3,3350.2,5.96978]
[1721048012047,3.41577227,3350.7,3350.5,2.98462]
[1721048012244,3.84195891,3350.7,3350.5,5.96917]
[1721048012446,3.84195891,3350.7,3350.5,2.98455]
[1721048012447,0.18415312,3350.6,3350.5,2.98455]
[1721048012602,0.80804991,3350.6,3350.5,2.98455]
[1721048013316,0.18415312,3350.6,3350.5,2.98455]
[1721048013811,1.12003151,3350.6,3350.5,2.98455]
[1721048015543,1.11988737,3350.6,3350.5,2.98455]
[1721048016524,0.18414105,3350.6,3350.5,2.98455]
[1721048016715,0.18414105,3350.6,3350.5,5.96917]
[1721048016913,1.24766176,3351.0,3350.7,2.98445]
[1721048016914,0.62396314,3350.9,3350.7,2.98445]
[1721048017136,0.80808027,3350.9,3350.7,2.98445]
[1721048017435,0.62396314,3350.9,3350.8,2.98436]
[1721048018338,0.62396314,3350.9,3350.8,5.96872]
[1721048018705,0.93657196,3351.1,3351.0,5.96836]
[1721048019046,1.12076894,3351.1,3351.0,5.96836]
[1721048021860,0.93657196,3351.1,3351.0,5.96836]
[1721048022059,1.12081618,3351.1,3351.0,5.96836]
[1721048024246,0.69240198,3351.1,3351.0,5.96836]
[1721048024450,1.12129305,3351.1,3351.0,5.96836]
[1721048024748,0.18424422,3351.1,3351.0,5.96836]
[1721048025043,0.6247111,3351.3,3350.9,2.98422]
[1721048025451,0.6247111,3351.4,3351.3,5.96782]
[1721048025607,0.93704883,3351.5,3351.3,5.96782]
[1721048025608,1.12125452,3351.5,3351.4,2.98382]
[1721048027533,0.69242571,3351.5,3351.4,2.98382]
[1721048028148,1.1214019,3351.5,3351.4,5.96764]
[1721048028460,2.2764,3351.6,3351.5,5.96746]
[1721048028667,3.39784223,3351.6,3351.5,5.96746]
[1721048028864,2.96884974,3351.6,3351.5,5.96746]
[1721048029049,3.39789353,3351.6,3351.5,5.96746]
[1721048029564,2.96881415,3351.6,3351.5,5.96746]
[1721048029763,3.39783263,3351.6,3351.5,5.96746]
[1721048031472,3.39776856,3351.6,3351.5,5.96746]
[1721048031644,3.21359118,3351.6,3351.5,5.96746]
[1721048031832,3.39776963,3351.6,3351.5,5.96746]
[1721048034277,3.39776963,3351.6,3351.2,2.98392]
[1721048034581,0.80864087,3351.5,3351.2,2.98392]